Workbook

Sheet Munka1
A1: Favágó szebben | D1: Favágó gyors
A2: Melyik számra keressünk rá? | B2: Eredmény | D2: 3333 | G2: Keresd lefelé a zöldet -> | J2: 88888 | M2: Keresd lefelé a zöldet -> | P2: 333333 | S2: Keresd lefelé a zöldet ->
A3: 3333 | B3: =Szamolas_int(A3) -> 3703 | D3: =$D$2+E3 -> 3334 | E3: 1 | F3: =(D3-LEFT(D3,3)) -> 3001 | J3: =$J$2+K3 -> 88889 | K3: 1 | L3: =(J3-LEFT(J3,3)) -> 88001 | P3: =$P$2+Q3 -> 333334 | Q3: 1 | R3: =(P3-LEFT(P3,3)) -> 333001
A4: (VBA) | D4: =$D$2+E4 -> 3335 | E4: =E3+1 -> 2 | F4: =(D4-LEFT(D4,3)) -> 3002 | J4: =$J$2+K4 -> 88890 | K4: 2 | L4: =(J4-LEFT(J4,3)) -> 88002 | P4: =$P$2+Q4 -> 333335 | Q4: 2 | R4: =(P4-LEFT(P4,3)) -> 333002
D5: 3336 | E5: =E4+1 -> 3 | F5: 3003 | J5: 88891 | K5: 3 | L5: 88003 | P5: 333336 | Q5: 3 | R5: =(P5-LEFT(P5,3)) -> 333003
D6: 3337 | E6: =E5+1 -> 4 | F6: 3004 | J6: 88892 | K6: 4 | L6: 88004 | P6: 333337 | Q6: 4 | R6: 333004
D7: 3338 | E7: 5 | F7: 3005 | J7: 88893 | K7: 5 | L7: 88005 | P7: 333338 | Q7: 5 | R7: 333005
D8: 3339 | E8: 6 | F8: 3006 | J8: 88894 | K8: 6 | L8: 88006 | P8: 333339 | Q8: 6 | R8: 333006
D9: 3340 | E9: 7 | F9: 3006 | J9: 88895 | K9: 7 | L9: 88007 | P9: 333340 | Q9: 7 | R9: 333007
D10: 3341 | E10: 8 | F10: 3007 | J10: 88896 | K10: 8 | L10: 88008 | P10: 333341 | Q10: 8 | R10: 333008
D11: 3342 | E11: 9 | F11: 3008 | J11: 88897 | K11: 9 | L11: 88009 | P11: 333342 | Q11: 9 | R11: 333009
D12: 3343 | E12: 10 | F12: 3009 | J12: 88898 | K12: 10 | L12: 88010 | P12: 333343 | Q12: 10 | R12: 333010
D13: 3344 | E13: 11 | F13: 3010 | J13: 88899 | K13: 11 | L13: 88011 | P13: 333344 | Q13: 11 | R13: 333011
D14: 3345 | E14: 12 | F14: 3011 | J14: 88900 | K14: 12 | L14: 88011 | P14: 333345 | Q14: 12 | R14: 333012
D15: 3346 | E15: 13 | F15: 3012 | J15: 88901 | K15: 13 | L15: 88012 | P15: 333346 | Q15: 13 | R15: 333013
D16: 3347 | E16: 14 | F16: 3013 | J16: 88902 | K16: 14 | L16: 88013 | P16: 333347 | Q16: 14 | R16: 333014
D17: 3348 | E17: 15 | F17: 3014 | J17: 88903 | K17: 15 | L17: 88014 | P17: 333348 | Q17: 15 | R17: 333015
D18: 3349 | E18: 16 | F18: 3015 | J18: 88904 | K18: 16 | L18: 88015 | P18: 333349 | Q18: 16 | R18: 333016
D19: 3350 | E19: 17 | F19: 3015 | J19: 88905 | K19: 17 | L19: 88016 | P19: 333350 | Q19: 17 | R19: 333017
D20: 3351 | E20: 18 | F20: 3016 | J20: 88906 | K20: 18 | L20: 88017 | P20: 333351 | Q20: 18 | R20: 333018
D21: 3352 | E21: 19 | F21: 3017 | J21: 88907 | K21: 19 | L21: 88018 | P21: 333352 | Q21: 19 | R21: 333019
D22: 3353 | E22: 20 | F22: 3018 | J22: 88908 | K22: 20 | L22: 88019 | P22: 333353 | Q22: 20 | R22: 333020
D23: 3354 | E23: 21 | F23: 3019 | J23: 88909 | K23: 21 | L23: 88020 | P23: 333354 | Q23: 21 | R23: 333021
D24: 3355 | E24: 22 | F24: 3020 | J24: 88910 | K24: 22 | L24: 88021 | P24: 333355 | Q24: 22 | R24: 333022
D25: 3356 | E25: 23 | F25: 3021 | J25: 88911 | K25: 23 | L25: 88022 | P25: 333356 | Q25: 23 | R25: 333023
D26: 3357 | E26: 24 | F26: 3022 | J26: 88912 | K26: 24 | L26: 88023 | P26: 333357 | Q26: 24 | R26: 333024
D27: 3358 | E27: 25 | F27: 3023 | J27: 88913 | K27: 25 | L27: 88024 | P27: 333358 | Q27: 25 | R27: 333025
D28: 3359 | E28: 26 | F28: 3024 | J28: 88914 | K28: 26 | L28: 88025 | P28: 333359 | Q28: 26 | R28: 333026
D29: 3360 | E29: 27 | F29: 3024 | J29: 88915 | K29: 27 | L29: 88026 | P29: 333360 | Q29: 27 | R29: 333027
D30: 3361 | E30: 28 | F30: 3025 | J30: 88916 | K30: 28 | L30: 88027 | P30: 333361 | Q30: 28 | R30: 333028
D31: 3362 | E31: 29 | F31: 3026 | J31: 88917 | K31: 29 | L31: 88028 | P31: 333362 | Q31: 29 | R31: 333029
D32: 3363 | E32: 30 | F32: 3027 | J32: 88918 | K32: 30 | L32: 88029 | P32: 333363 | Q32: 30 | R32: 333030
D33: 3364 | E33: 31 | F33: 3028 | J33: 88919 | K33: 31 | L33: 88030 | P33: 333364 | Q33: 31 | R33: 333031
D34: 3365 | E34: 32 | F34: 3029 | J34: 88920 | K34: 32 | L34: 88031 | P34: 333365 | Q34: 32 | R34: 333032
D35: 3366 | E35: 33 | F35: 3030 | J35: 88921 | K35: 33 | L35: 88032 | P35: 333366 | Q35: 33 | R35: 333033
D36: 3367 | E36: 34 | F36: 3031 | J36: 88922 | K36: 34 | L36: 88033 | P36: 333367 | Q36: 34 | R36: 333034
D37: 3368 | E37: 35 | F37: 3032 | J37: 88923 | K37: 35 | L37: 88034 | P37: 333368 | Q37: 35 | R37: 333035
D38: 3369 | E38: 36 | F38: 3033 | J38: 88924 | K38: 36 | L38: 88035 | P38: 333369 | Q38: 36 | R38: 333036
D39: 3370 | E39: 37 | F39: 3033 | J39: 88925 | K39: 37 | L39: 88036 | P39: 333370 | Q39: 37 | R39: 333037
D40: 3371 | E40: 38 | F40: 3034 | J40: 88926 | K40: 38 | L40: 88037 | P40: 333371 | Q40: 38 | R40: 333038
D41: 3372 | E41: 39 | F41: 3035 | J41: 88927 | K41: 39 | L41: 88038 | P41: 333372 | Q41: 39 | R41: 333039
D42: 3373 | E42: 40 | F42: 3036 | J42: 88928 | K42: 40 | L42: 88039 | P42: 333373 | Q42: 40 | R42: 333040
D43: 3374 | E43: 41 | F43: 3037 | J43: 88929 | K43: 41 | L43: 88040 | P43: 333374 | Q43: 41 | R43: 333041
D44: 3375 | E44: 42 | F44: 3038 | J44: 88930 | K44: 42 | L44: 88041 | P44: 333375 | Q44: 42 | R44: 333042
D45: 3376 | E45: 43 | F45: 3039 | J45: 88931 | K45: 43 | L45: 88042 | P45: 333376 | Q45: 43 | R45: 333043
D46: 3377 | E46: 44 | F46: 3040 | J46: 88932 | K46: 44 | L46: 88043 | P46: 333377 | Q46: 44 | R46: 333044
D47: 3378 | E47: 45 | F47: 3041 | J47: 88933 | K47: 45 | L47: 88044 | P47: 333378 | Q47: 45 | R47: 333045
D48: 3379 | E48: 46 | F48: 3042 | J48: 88934 | K48: 46 | L48: 88045 | P48: 333379 | Q48: 46 | R48: 333046
D49: 3380 | E49: 47 | F49: 3042 | J49: 88935 | K49: 47 | L49: 88046 | P49: 333380 | Q49: 47 | R49: 333047
D50: 3381 | E50: 48 | F50: 3043 | J50: 88936 | K50: 48 | L50: 88047 | P50: 333381 | Q50: 48 | R50: 333048
D51: 3382 | E51: 49 | F51: 3044 | J51: 88937 | K51: 49 | L51: 88048 | P51: 333382 | Q51: 49 | R51: 333049
D52: 3383 | E52: 50 | F52: 3045 | J52: 88938 | K52: 50 | L52: 88049 | P52: 333383 | Q52: 50 | R52: 333050
D53: 3384 | E53: 51 | F53: 3046 | J53: 88939 | K53: 51 | L53: 88050 | P53: 333384 | Q53: 51 | R53: 333051
D54: 3385 | E54: 52 | F54: 3047 | J54: 88940 | K54: 52 | L54: 88051 | P54: 333385 | Q54: 52 | R54: 333052
D55: 3386 | E55: 53 | F55: 3048 | J55: 88941 | K55: 53 | L55: 88052 | P55: 333386 | Q55: 53 | R55: 333053
D56: 3387 | E56: 54 | F56: 3049 | J56: 88942 | K56: 54 | L56: 88053 | P56: 333387 | Q56: 54 | R56: 333054
D57: 3388 | E57: 55 | F57: 3050 | J57: 88943 | K57: 55 | L57: 88054 | P57: 333388 | Q57: 55 | R57: 333055
D58: 3389 | E58: 56 | F58: 3051 | J58: 88944 | K58: 56 | L58: 88055 | P58: 333389 | Q58: 56 | R58: 333056
D59: 3390 | E59: 57 | F59: 3051 | J59: 88945 | K59: 57 | L59: 88056 | P59: 333390 | Q59: 57 | R59: 333057
D60: 3391 | E60: 58 | F60: 3052 | J60: 88946 | K60: 58 | L60: 88057 | P60: 333391 | Q60: 58 | R60: 333058
D61: 3392 | E61: 59 | F61: 3053 | J61: 88947 | K61: 59 | L61: 88058 | P61: 333392 | Q61: 59 | R61: 333059
D62: 3393 | E62: 60 | F62: 3054 | J62: 88948 | K62: 60 | L62: 88059 | P62: 333393 | Q62: 60 | R62: 333060
D63: 3394 | E63: 61 | F63: 3055 | J63: 88949 | K63: 61 | L63: 88060 | P63: 333394 | Q63: 61 | R63: 333061
D64: 3395 | E64: 62 | F64: 3056 | J64: 88950 | K64: 62 | L64: 88061 | P64: 333395 | Q64: 62 | R64: 333062
D65: 3396 | E65: 63 | F65: 3057 | J65: 88951 | K65: 63 | L65: 88062 | P65: 333396 | Q65: 63 | R65: 333063
D66: 3397 | E66: 64 | F66: 3058 | J66: 88952 | K66: 64 | L66: 88063 | P66: 333397 | Q66: 64 | R66: 333064
D67: 3398 | E67: 65 | F67: 3059 | J67: 88953 | K67: 65 | L67: 88064 | P67: 333398 | Q67: 65 | R67: 333065
D68: =$D$2+E68 -> 3399 | E68: 66 | F68: =(D68-LEFT(D68,3)) -> 3060 | J68: =$J$2+K68 -> 88954 | K68: 66 | L68: =(J68-LEFT(J68,3)) -> 88065 | P68: =$P$2+Q68 -> 333399 | Q68: 66 | R68: 333066
D69: 3400 | E69: 67 | F69: 3060 | J69: 88955 | K69: 67 | L69: 88066 | P69: 333400 | Q69: 67 | R69: =(P69-LEFT(P69,3)) -> 333067
D70: 3401 | E70: =E69+1 -> 68 | F70: 3061 | J70: 88956 | K70: 68 | L70: 88067 | P70: 333401 | Q70: 68 | R70: 333068
D71: 3402 | E71: 69 | F71: 3062 | J71: 88957 | K71: 69 | L71: 88068 | P71: 333402 | Q71: 69 | R71: 333069
D72: 3403 | E72: 70 | F72: 3063 | J72: 88958 | K72: 70 | L72: 88069 | P72: 333403 | Q72: 70 | R72: 333070
D73: 3404 | E73: 71 | F73: 3064 | J73: 88959 | K73: 71 | L73: 88070 | P73: 333404 | Q73: 71 | R73: 333071
D74: 3405 | E74: 72 | F74: 3065 | J74: 88960 | K74: 72 | L74: 88071 | P74: 333405 | Q74: 72 | R74: 333072
D75: 3406 | E75: 73 | F75: 3066 | J75: 88961 | K75: 73 | L75: 88072 | P75: 333406 | Q75: 73 | R75: 333073
D76: 3407 | E76: 74 | F76: 3067 | J76: 88962 | K76: 74 | L76: 88073 | P76: 333407 | Q76: 74 | R76: 333074
D77: 3408 | E77: 75 | F77: 3068 | J77: 88963 | K77: 75 | L77: 88074 | P77: 333408 | Q77: 75 | R77: 333075
D78: 3409 | E78: 76 | F78: 3069 | J78: 88964 | K78: 76 | L78: 88075 | P78: 333409 | Q78: 76 | R78: 333076
D79: 3410 | E79: 77 | F79: 3069 | J79: 88965 | K79: 77 | L79: 88076 | P79: 333410 | Q79: 77 | R79: 333077
D80: 3411 | E80: 78 | F80: 3070 | J80: 88966 | K80: 78 | L80: 88077 | P80: 333411 | Q80: 78 | R80: 333078
D81: 3412 | E81: 79 | F81: 3071 | J81: 88967 | K81: 79 | L81: 88078 | P81: 333412 | Q81: 79 | R81: 333079
D82: 3413 | E82: 80 | F82: 3072 | J82: 88968 | K82: 80 | L82: 88079 | P82: 333413 | Q82: 80 | R82: 333080
D83: 3414 | E83: 81 | F83: 3073 | J83: 88969 | K83: 81 | L83: 88080 | P83: 333414 | Q83: 81 | R83: 333081
D84: 3415 | E84: 82 | F84: 3074 | J84: 88970 | K84: 82 | L84: 88081 | P84: 333415 | Q84: 82 | R84: 333082
D85: 3416 | E85: 83 | F85: 3075 | J85: 88971 | K85: 83 | L85: 88082 | P85: 333416 | Q85: 83 | R85: 333083
D86: 3417 | E86: 84 | F86: 3076 | J86: 88972 | K86: 84 | L86: 88083 | P86: 333417 | Q86: 84 | R86: 333084
D87: 3418 | E87: 85 | F87: 3077 | J87: 88973 | K87: 85 | L87: 88084 | P87: 333418 | Q87: 85 | R87: 333085
D88: 3419 | E88: 86 | F88: 3078 | J88: 88974 | K88: 86 | L88: 88085 | P88: 333419 | Q88: 86 | R88: 333086
D89: 3420 | E89: 87 | F89: 3078 | J89: 88975 | K89: 87 | L89: 88086 | P89: 333420 | Q89: 87 | R89: 333087
D90: 3421 | E90: 88 | F90: 3079 | J90: 88976 | K90: 88 | L90: 88087 | P90: 333421 | Q90: 88 | R90: 333088
D91: 3422 | E91: 89 | F91: 3080 | J91: 88977 | K91: 89 | L91: 88088 | P91: 333422 | Q91: 89 | R91: 333089
D92: 3423 | E92: 90 | F92: 3081 | J92: 88978 | K92: 90 | L92: 88089 | P92: 333423 | Q92: 90 | R92: 333090
D93: 3424 | E93: 91 | F93: 3082 | J93: 88979 | K93: 91 | L93: 88090 | P93: 333424 | Q93: 91 | R93: 333091
D94: 3425 | E94: 92 | F94: 3083 | J94: 88980 | K94: 92 | L94: 88091 | P94: 333425 | Q94: 92 | R94: 333092
D95: 3426 | E95: 93 | F95: 3084 | J95: 88981 | K95: 93 | L95: 88092 | P95: 333426 | Q95: 93 | R95: 333093
D96: 3427 | E96: 94 | F96: 3085 | J96: 88982 | K96: 94 | L96: 88093 | P96: 333427 | Q96: 94 | R96: 333094
D97: 3428 | E97: 95 | F97: 3086 | J97: 88983 | K97: 95 | L97: 88094 | P97: 333428 | Q97: 95 | R97: 333095
D98: 3429 | E98: 96 | F98: 3087 | J98: 88984 | K98: 96 | L98: 88095 | P98: 333429 | Q98: 96 | R98: 333096
D99: 3430 | E99: 97 | F99: 3087 | J99: 88985 | K99: 97 | L99: 88096 | P99: 333430 | Q99: 97 | R99: 333097
D100: 3431 | E100: 98 | F100: 3088 | J100: 88986 | K100: 98 | L100: 88097 | P100: 333431 | Q100: 98 | R100: 333098
D101: 3432 | E101: 99 | F101: 3089 | J101: 88987 | K101: 99 | L101: 88098 | P101: 333432 | Q101: 99 | R101: 333099
D102: 3433 | E102: 100 | F102: 3090 | J102: 88988 | K102: 100 | L102: 88099 | P102: 333433 | Q102: 100 | R102: 333100
D103: 3434 | E103: 101 | F103: 3091 | J103: 88989 | K103: 101 | L103: 88100 | P103: 333434 | Q103: 101 | R103: 333101
D104: 3435 | E104: 102 | F104: 3092 | J104: 88990 | K104: 102 | L104: 88101 | P104: 333435 | Q104: 102 | R104: 333102
D105: 3436 | E105: 103 | F105: 3093 | J105: 88991 | K105: 103 | L105: 88102 | P105: 333436 | Q105: 103 | R105: 333103
D106: 3437 | E106: 104 | F106: 3094 | J106: 88992 | K106: 104 | L106: 88103 | P106: 333437 | Q106: 104 | R106: 333104
D107: 3438 | E107: 105 | F107: 3095 | J107: 88993 | K107: 105 | L107: 88104 | P107: 333438 | Q107: 105 | R107: 333105
D108: 3439 | E108: 106 | F108: 3096 | J108: 88994 | K108: 106 | L108: 88105 | P108: 333439 | Q108: 106 | R108: 333106
D109: 3440 | E109: 107 | F109: 3096 | J109: 88995 | K109: 107 | L109: 88106 | P109: 333440 | Q109: 107 | R109: 333107
D110: 3441 | E110: 108 | F110: 3097 | J110: 88996 | K110: 108 | L110: 88107 | P110: 333441 | Q110: 108 | R110: 333108
D111: 3442 | E111: 109 | F111: 3098 | J111: 88997 | K111: 109 | L111: 88108 | P111: 333442 | Q111: 109 | R111: 333109
D112: 3443 | E112: 110 | F112: 3099 | J112: 88998 | K112: 110 | L112: 88109 | P112: 333443 | Q112: 110 | R112: 333110
D113: 3444 | E113: 111 | F113: 3100 | J113: 88999 | K113: 111 | L113: 88110 | P113: 333444 | Q113: 111 | R113: 333111
D114: 3445 | E114: 112 | F114: 3101 | J114: 89000 | K114: 112 | L114: 88110 | P114: 333445 | Q114: 112 | R114: 333112
D115: 3446 | E115: 113 | F115: 3102 | J115: 89001 | K115: 113 | L115: 88111 | P115: 333446 | Q115: 113 | R115: 333113
D116: 3447 | E116: 114 | F116: 3103 | J116: 89002 | K116: 114 | L116: 88112 | P116: 333447 | Q116: 114 | R116: 333114
D117: 3448 | E117: 115 | F117: 3104 | J117: 89003 | K117: 115 | L117: 88113 | P117: 333448 | Q117: 115 | R117: 333115
D118: 3449 | E118: 116 | F118: 3105 | J118: 89004 | K118: 116 | L118: 88114 | P118: 333449 | Q118: 116 | R118: 333116
D119: 3450 | E119: 117 | F119: 3105 | J119: 89005 | K119: 117 | L119: 88115 | P119: 333450 | Q119: 117 | R119: 333117
D120: 3451 | E120: 118 | F120: 3106 | J120: 89006 | K120: 118 | L120: 88116 | P120: 333451 | Q120: 118 | R120: 333118
D121: 3452 | E121: 119 | F121: 3107 | J121: 89007 | K121: 119 | L121: 88117 | P121: 333452 | Q121: 119 | R121: 333119
D122: 3453 | E122: 120 | F122: 3108 | J122: 89008 | K122: 120 | L122: 88118 | P122: 333453 | Q122: 120 | R122: 333120
D123: 3454 | E123: 121 | F123: 3109 | J123: 89009 | K123: 121 | L123: 88119 | P123: 333454 | Q123: 121 | R123: 333121
D124: 3455 | E124: 122 | F124: 3110 | J124: 89010 | K124: 122 | L124: 88120 | P124: 333455 | Q124: 122 | R124: 333122
D125: 3456 | E125: 123 | F125: 3111 | J125: 89011 | K125: 123 | L125: 88121 | P125: 333456 | Q125: 123 | R125: 333123
D126: 3457 | E126: 124 | F126: 3112 | J126: 89012 | K126: 124 | L126: 88122 | P126: 333457 | Q126: 124 | R126: 333124
D127: 3458 | E127: 125 | F127: 3113 | J127: 89013 | K127: 125 | L127: 88123 | P127: 333458 | Q127: 125 | R127: 333125
D128: 3459 | E128: 126 | F128: 3114 | J128: 89014 | K128: 126 | L128: 88124 | P128: 333459 | Q128: 126 | R128: 333126
D129: 3460 | E129: 127 | F129: 3114 | J129: 89015 | K129: 127 | L129: 88125 | P129: 333460 | Q129: 127 | R129: 333127
D130: 3461 | E130: 128 | F130: 3115 | J130: 89016 | K130: 128 | L130: 88126 | P130: 333461 | Q130: 128 | R130: 333128
D131: 3462 | E131: 129 | F131: 3116 | J131: 89017 | K131: 129 | L131: 88127 | P131: 333462 | Q131: 129 | R131: 333129
D132: =$D$2+E132 -> 3463 | E132: 130 | F132: =(D132-LEFT(D132,3)) -> 3117 | J132: =$J$2+K132 -> 89018 | K132: 130 | L132: =(J132-LEFT(J132,3)) -> 88128 | P132: =$P$2+Q132 -> 333463 | Q132: 130 | R132: 333130
D133: 3464 | E133: 131 | F133: 3118 | J133: 89019 | K133: 131 | L133: 88129 | P133: 333464 | Q133: 131 | R133: =(P133-LEFT(P133,3)) -> 333131
D134: 3465 | E134: =E133+1 -> 132 | F134: 3119 | J134: 89020 | K134: 132 | L134: 88130 | P134: 333465 | Q134: 132 | R134: 333132
D135: 3466 | E135: 133 | F135: 3120 | J135: 89021 | K135: 133 | L135: 88131 | P135: 333466 | Q135: 133 | R135: 333133
D136: 3467 | E136: 134 | F136: 3121 | J136: 89022 | K136: 134 | L136: 88132 | P136: 333467 | Q136: 134 | R136: 333134
D137: 3468 | E137: 135 | F137: 3122 | J137: 89023 | K137: 135 | L137: 88133 | P137: 333468 | Q137: 135 | R137: 333135
D138: 3469 | E138: 136 | F138: 3123 | J138: 89024 | K138: 136 | L138: 88134 | P138: 333469 | Q138: 136 | R138: 333136
D139: 3470 | E139: 137 | F139: 3123 | J139: 89025 | K139: 137 | L139: 88135 | P139: 333470 | Q139: 137 | R139: 333137
D140: 3471 | E140: 138 | F140: 3124 | J140: 89026 | K140: 138 | L140: 88136 | P140: 333471 | Q140: 138 | R140: 333138
D141: 3472 | E141: 139 | F141: 3125 | J141: 89027 | K141: 139 | L141: 88137 | P141: 333472 | Q141: 139 | R141: 333139
D142: 3473 | E142: 140 | F142: 3126 | J142: 89028 | K142: 140 | L142: 88138 | P142: 333473 | Q142: 140 | R142: 333140
D143: 3474 | E143: 141 | F143: 3127 | J143: 89029 | K143: 141 | L143: 88139 | P143: 333474 | Q143: 141 | R143: 333141
D144: 3475 | E144: 142 | F144: 3128 | J144: 89030 | K144: 142 | L144: 88140 | P144: 333475 | Q144: 142 | R144: 333142
D145: 3476 | E145: 143 | F145: 3129 | J145: 89031 | K145: 143 | L145: 88141 | P145: 333476 | Q145: 143 | R145: 333143
D146: 3477 | E146: 144 | F146: 3130 | J146: 89032 | K146: 144 | L146: 88142 | P146: 333477 | Q146: 144 | R146: 333144
D147: 3478 | E147: 145 | F147: 3131 | J147: 89033 | K147: 145 | L147: 88143 | P147: 333478 | Q147: 145 | R147: 333145
D148: 3479 | E148: 146 | F148: 3132 | J148: 89034 | K148: 146 | L148: 88144 | P148: 333479 | Q148: 146 | R148: 333146
D149: 3480 | E149: 147 | F149: 3132 | J149: 89035 | K149: 147 | L149: 88145 | P149: 333480 | Q149: 147 | R149: 333147
D150: 3481 | E150: 148 | F150: 3133 | J150: 89036 | K150: 148 | L150: 88146 | P150: 333481 | Q150: 148 | R150: 333148
D151: 3482 | E151: 149 | F151: 3134 | J151: 89037 | K151: 149 | L151: 88147 | P151: 333482 | Q151: 149 | R151: 333149
D152: 3483 | E152: 150 | F152: 3135 | J152: 89038 | K152: 150 | L152: 88148 | P152: 333483 | Q152: 150 | R152: 333150
D153: 3484 | E153: 151 | F153: 3136 | J153: 89039 | K153: 151 | L153: 88149 | P153: 333484 | Q153: 151 | R153: 333151
D154: 3485 | E154: 152 | F154: 3137 | J154: 89040 | K154: 152 | L154: 88150 | P154: 333485 | Q154: 152 | R154: 333152
D155: 3486 | E155: 153 | F155: 3138 | J155: 89041 | K155: 153 | L155: 88151 | P155: 333486 | Q155: 153 | R155: 333153
D156: 3487 | E156: 154 | F156: 3139 | J156: 89042 | K156: 154 | L156: 88152 | P156: 333487 | Q156: 154 | R156: 333154
D157: 3488 | E157: 155 | F157: 3140 | J157: 89043 | K157: 155 | L157: 88153 | P157: 333488 | Q157: 155 | R157: 333155
D158: 3489 | E158: 156 | F158: 3141 | J158: 89044 | K158: 156 | L158: 88154 | P158: 333489 | Q158: 156 | R158: 333156
D159: 3490 | E159: 157 | F159: 3141 | J159: 89045 | K159: 157 | L159: 88155 | P159: 333490 | Q159: 157 | R159: 333157
D160: 3491 | E160: 158 | F160: 3142 | J160: 89046 | K160: 158 | L160: 88156 | P160: 333491 | Q160: 158 | R160: 333158
D161: 3492 | E161: 159 | F161: 3143 | J161: 89047 | K161: 159 | L161: 88157 | P161: 333492 | Q161: 159 | R161: 333159
D162: 3493 | E162: 160 | F162: 3144 | J162: 89048 | K162: 160 | L162: 88158 | P162: 333493 | Q162: 160 | R162: 333160
D163: 3494 | E163: 161 | F163: 3145 | J163: 89049 | K163: 161 | L163: 88159 | P163: 333494 | Q163: 161 | R163: 333161
D164: 3495 | E164: 162 | F164: 3146 | J164: 89050 | K164: 162 | L164: 88160 | P164: 333495 | Q164: 162 | R164: 333162
D165: 3496 | E165: 163 | F165: 3147 | J165: 89051 | K165: 163 | L165: 88161 | P165: 333496 | Q165: 163 | R165: 333163
D166: 3497 | E166: 164 | F166: 3148 | J166: 89052 | K166: 164 | L166: 88162 | P166: 333497 | Q166: 164 | R166: 333164
D167: 3498 | E167: 165 | F167: 3149 | J167: 89053 | K167: 165 | L167: 88163 | P167: 333498 | Q167: 165 | R167: 333165
D168: 3499 | E168: 166 | F168: 3150 | J168: 89054 | K168: 166 | L168: 88164 | P168: 333499 | Q168: 166 | R168: 333166
D169: 3500 | E169: 167 | F169: 3150 | J169: 89055 | K169: 167 | L169: 88165 | P169: 333500 | Q169: 167 | R169: 333167
D170: 3501 | E170: 168 | F170: 3151 | J170: 89056 | K170: 168 | L170: 88166 | P170: 333501 | Q170: 168 | R170: 333168
D171: 3502 | E171: 169 | F171: 3152 | J171: 89057 | K171: 169 | L171: 88167 | P171: 333502 | Q171: 169 | R171: 333169
D172: 3503 | E172: 170 | F172: 3153 | J172: 89058 | K172: 170 | L172: 88168 | P172: 333503 | Q172: 170 | R172: 333170
D173: 3504 | E173: 171 | F173: 3154 | J173: 89059 | K173: 171 | L173: 88169 | P173: 333504 | Q173: 171 | R173: 333171
D174: 3505 | E174: 172 | F174: 3155 | J174: 89060 | K174: 172 | L174: 88170 | P174: 333505 | Q174: 172 | R174: 333172
D175: 3506 | E175: 173 | F175: 3156 | J175: 89061 | K175: 173 | L175: 88171 | P175: 333506 | Q175: 173 | R175: 333173
D176: 3507 | E176: 174 | F176: 3157 | J176: 89062 | K176: 174 | L176: 88172 | P176: 333507 | Q176: 174 | R176: 333174
D177: 3508 | E177: 175 | F177: 3158 | J177: 89063 | K177: 175 | L177: 88173 | P177: 333508 | Q177: 175 | R177: 333175
D178: 3509 | E178: 176 | F178: 3159 | J178: 89064 | K178: 176 | L178: 88174 | P178: 333509 | Q178: 176 | R178: 333176
D179: 3510 | E179: 177 | F179: 3159 | J179: 89065 | K179: 177 | L179: 88175 | P179: 333510 | Q179: 177 | R179: 333177
D180: 3511 | E180: 178 | F180: 3160 | J180: 89066 | K180: 178 | L180: 88176 | P180: 333511 | Q180: 178 | R180: 333178
D181: 3512 | E181: 179 | F181: 3161 | J181: 89067 | K181: 179 | L181: 88177 | P181: 333512 | Q181: 179 | R181: 333179
D182: 3513 | E182: 180 | F182: 3162 | J182: 89068 | K182: 180 | L182: 88178 | P182: 333513 | Q182: 180 | R182: 333180
D183: 3514 | E183: 181 | F183: 3163 | J183: 89069 | K183: 181 | L183: 88179 | P183: 333514 | Q183: 181 | R183: 333181
D184: 3515 | E184: 182 | F184: 3164 | J184: 89070 | K184: 182 | L184: 88180 | P184: 333515 | Q184: 182 | R184: 333182
D185: 3516 | E185: 183 | F185: 3165 | J185: 89071 | K185: 183 | L185: 88181 | P185: 333516 | Q185: 183 | R185: 333183
D186: 3517 | E186: 184 | F186: 3166 | J186: 89072 | K186: 184 | L186: 88182 | P186: 333517 | Q186: 184 | R186: 333184
D187: 3518 | E187: 185 | F187: 3167 | J187: 89073 | K187: 185 | L187: 88183 | P187: 333518 | Q187: 185 | R187: 333185
D188: 3519 | E188: 186 | F188: 3168 | J188: 89074 | K188: 186 | L188: 88184 | P188: 333519 | Q188: 186 | R188: 333186
D189: 3520 | E189: 187 | F189: 3168 | J189: 89075 | K189: 187 | L189: 88185 | P189: 333520 | Q189: 187 | R189: 333187
D190: 3521 | E190: 188 | F190: 3169 | J190: 89076 | K190: 188 | L190: 88186 | P190: 333521 | Q190: 188 | R190: 333188
D191: 3522 | E191: 189 | F191: 3170 | J191: 89077 | K191: 189 | L191: 88187 | P191: 333522 | Q191: 189 | R191: 333189
D192: 3523 | E192: 190 | F192: 3171 | J192: 89078 | K192: 190 | L192: 88188 | P192: 333523 | Q192: 190 | R192: 333190
D193: 3524 | E193: 191 | F193: 3172 | J193: 89079 | K193: 191 | L193: 88189 | P193: 333524 | Q193: 191 | R193: 333191
D194: 3525 | E194: 192 | F194: 3173 | J194: 89080 | K194: 192 | L194: 88190 | P194: 333525 | Q194: 192 | R194: 333192
D195: 3526 | E195: 193 | F195: 3174 | J195: 89081 | K195: 193 | L195: 88191 | P195: 333526 | Q195: 193 | R195: 333193
D196: =$D$2+E196 -> 3527 | E196: 194 | F196: =(D196-LEFT(D196,3)) -> 3175 | J196: =$J$2+K196 -> 89082 | K196: 194 | L196: =(J196-LEFT(J196,3)) -> 88192 | P196: =$P$2+Q196 -> 333527 | Q196: 194 | R196: 333194
D197: 3528 | E197: 195 | F197: 3176 | J197: 89083 | K197: 195 | L197: 88193 | P197: 333528 | Q197: 195 | R197: =(P197-LEFT(P197,3)) -> 333195
D198: 3529 | E198: =E197+1 -> 196 | F198: 3177 | J198: 89084 | K198: 196 | L198: 88194 | P198: 333529 | Q198: 196 | R198: 333196
D199: 3530 | E199: 197 | F199: 3177 | J199: 89085 | K199: 197 | L199: 88195 | P199: 333530 | Q199: 197 | R199: 333197
D200: 3531 | E200: 198 | F200: 3178 | J200: 89086 | K200: 198 | L200: 88196 | P200: 333531 | Q200: 198 | R200: 333198
... 1100 more rows
